[Event "Early-Titled-Tuesday-Blitz-April-23-2024"]
[Site "Chess.com"]
[Date "2024.04.23"]
[Round "9"]
[White "zverr1"]
[Black "David_George21"]
[Result "1-0"]
[WhiteElo "2476"]
[BlackElo "2326"]
[TimeControl "180+1"]
[EndTime "9:51:00 PDT"]
[Termination "zverr1 won by checkmate"]

1. e4 {[%clk 0:02:58]} 1... c5 {[%clk 0:02:57.7]} 2. Nf3 {[%clk 0:02:55.3]} 2...
d6 {[%clk 0:02:58]} 3. Nc3 {[%clk 0:02:54.9]} 3... Nc6 {[%clk 0:02:55.5]} 4. Bb5
{[%clk 0:02:54.2]} 4... a6 {[%clk 0:02:54.8]} 5. Bxc6+ {[%clk 0:02:52.7]} 5...
bxc6 {[%clk 0:02:55.7]} 6. d4 {[%clk 0:02:52.4]} 6... cxd4 {[%clk 0:02:56.6]} 7.
Nxd4 {[%clk 0:02:50.2]} 7... c5 {[%clk 0:02:57]} 8. Nf3 {[%clk 0:02:50]} 8...
Nf6 {[%clk 0:02:57.4]} 9. e5 {[%clk 0:02:48.5]} 9... dxe5 {[%clk 0:02:55.5]} 10.
Qxd8+ {[%clk 0:02:47.4]} 10... Kxd8 {[%clk 0:02:56.4]} 11. Nxe5 {[%clk
0:02:48.1]} 11... Ke8 {[%clk 0:02:56.8]} 12. O-O {[%clk 0:02:45.4]} 12... e6
{[%clk 0:02:55.8]} 13. Be3 {[%clk 0:02:43.4]} 13... Be7 {[%clk 0:02:46.9]} 14.
Na4 {[%clk 0:02:36.6]} 14... Nd7 {[%clk 0:02:18.8]} 15. Nc6 {[%clk 0:02:28.1]}
15... Bf8 {[%clk 0:01:54.3]} 16. Rad1 {[%clk 0:02:07.3]} 16... Bb7 {[%clk
0:01:34.8]} 17. Na5 {[%clk 0:02:07.3]} 17... Be4 {[%clk 0:01:34.4]} 18. f3
{[%clk 0:01:38.3]} 18... Bxc2 {[%clk 0:01:31.5]} 19. Rxd7 {[%clk 0:01:37.6]}
19... Bxa4 {[%clk 0:01:29.3]} 20. Rb7 {[%clk 0:01:34]} 20... Be7 {[%clk
0:00:52.2]} 21. b3 {[%clk 0:01:26.2]} 21... Bd7 {[%clk 0:00:34]} 22. Nc4 {[%clk
0:01:16.7]} 22... Rd8 {[%clk 0:00:19.4]} 23. Ne5 {[%clk 0:01:09.9]} 23... Bb5
{[%clk 0:00:19.4]} 24. Rc1 {[%clk 0:01:06.9]} 24... f6 {[%clk 0:00:19.3]} 25.
Nc4 {[%clk 0:00:59]} 25... Rd7 {[%clk 0:00:16.4]} 26. Rxd7 {[%clk 0:00:47.4]}
26... Kxd7 {[%clk 0:00:17.3]} 27. a4 {[%clk 0:00:42.9]} 27... Bc6 {[%clk
0:00:11.1]} 28. Na5 {[%clk 0:00:40.5]} 28... Bd5 {[%clk 0:00:08.5]} 29. Bxc5
{[%clk 0:00:38.3]} 29... Rc8 {[%clk 0:00:08.6]} 30. b4 {[%clk 0:00:29.7]} 30...
Bd8 {[%clk 0:00:05.2]} 31. Nc4 {[%clk 0:00:24.4]} 31... Rb8 {[%clk 0:00:03.9]}
32. Ne3 {[%clk 0:00:20.9]} 32... Bc6 {[%clk 0:00:03.1]} 33. Rd1+ {[%clk
0:00:17.8]} 33... Ke8 {[%clk 0:00:03.8]} 34. Ra1 {[%clk 0:00:12.3]} 34... Bd7
{[%clk 0:00:03.9]} 35. Nc4 {[%clk 0:00:11.7]} 35... Bc7 {[%clk 0:00:04.2]} 36.
Kf2 {[%clk 0:00:11.2]} 36... Kd8 {[%clk 0:00:03.7]} 37. g3 {[%clk 0:00:08.6]}
37... e5 {[%clk 0:00:04.2]} 38. Nb2 {[%clk 0:00:06.9]} 38... Be6 {[%clk
0:00:04.3]} 39. Rd1+ {[%clk 0:00:06.2]} 39... Kc8 {[%clk 0:00:05]} 40. Rc1
{[%clk 0:00:06.6]} 40... a5 {[%clk 0:00:04.9]} 41. Bd6 {[%clk 0:00:06.7]} 41...
Rb7 {[%clk 0:00:03]} 42. Rxc7+ {[%clk 0:00:04.3]} 42... Rxc7 {[%clk 0:00:03.9]}
43. Bxc7 {[%clk 0:00:05.2]} 43... Kxc7 {[%clk 0:00:04.4]} 44. bxa5 {[%clk
0:00:06.1]} 44... Kb7 {[%clk 0:00:05]} 45. Nd3 {[%clk 0:00:05.1]} 45... Bc4
{[%clk 0:00:04.5]} 46. Nb4 {[%clk 0:00:04.6]} 46... Ka7 {[%clk 0:00:03.5]} 47.
Ke3 {[%clk 0:00:03.3]} 47... Bb3 {[%clk 0:00:03.9]} 48. f4 {[%clk 0:00:03.6]}
48... Bxa4 {[%clk 0:00:03.5]} 49. fxe5 {[%clk 0:00:04.3]} 49... fxe5 {[%clk
0:00:04]} 50. Ke4 {[%clk 0:00:04.4]} 50... Bd7 {[%clk 0:00:02.9]} 51. Kxe5
{[%clk 0:00:04.6]} 51... g6 {[%clk 0:00:03.2]} 52. Kf6 {[%clk 0:00:04.8]} 52...
Bf5 {[%clk 0:00:03.2]} 53. Kg7 {[%clk 0:00:03.1]} 53... h5 {[%clk 0:00:03.6]}
54. Kf6 {[%clk 0:00:03.9]} 54... Bb1 {[%clk 0:00:03.6]} 55. h4 {[%clk
0:00:03.8]} 55... Bf5 {[%clk 0:00:03.6]} 56. Ke5 {[%clk 0:00:04.4]} 56... Bb1
{[%clk 0:00:03.5]} 57. Kd4 {[%clk 0:00:04.7]} 57... Bf5 {[%clk 0:00:03.6]} 58.
Kc5 {[%clk 0:00:05.1]} 58... Bb1 {[%clk 0:00:03.8]} 59. Kb5 {[%clk 0:00:05.6]}
59... Bf5 {[%clk 0:00:04]} 60. Nc6+ {[%clk 0:00:06.2]} 60... Ka8 {[%clk
0:00:02.8]} 61. a6 {[%clk 0:00:06.9]} 61... Bd3+ {[%clk 0:00:02.9]} 62. Kb6
{[%clk 0:00:06.5]} 62... Be4 {[%clk 0:00:02.7]} 63. Nb4 {[%clk 0:00:06.8]} 63...
Bf3 {[%clk 0:00:02.4]} 64. Kc5 {[%clk 0:00:07.2]} 64... Be4 {[%clk 0:00:02.5]}
65. Kd6 {[%clk 0:00:07.7]} 65... Ka7 {[%clk 0:00:02.4]} 66. Ke5 {[%clk
0:00:08.2]} 66... Bb1 {[%clk 0:00:02.3]} 67. Kf6 {[%clk 0:00:06.4]} 67... Bf5
{[%clk 0:00:02.3]} 68. Nc6+ {[%clk 0:00:03.9]} 68... Kxa6 {[%clk 0:00:02.6]} 69.
Ne7 {[%clk 0:00:04.8]} 69... Bg4 {[%clk 0:00:02.7]} 70. Nxg6 {[%clk 0:00:04.5]}
70... Kb6 {[%clk 0:00:03]} 71. Kg5 {[%clk 0:00:05.1]} 71... Kc6 {[%clk
0:00:02.3]} 72. Ne5+ {[%clk 0:00:05.7]} 72... Kd5 {[%clk 0:00:02.2]} 73. Nxg4
{[%clk 0:00:06.6]} 73... hxg4 {[%clk 0:00:02.7]} 74. Kxg4 {[%clk 0:00:07.5]}
74... Ke6 {[%clk 0:00:03.2]} 75. Kg5 {[%clk 0:00:08.1]} 75... Kf7 {[%clk
0:00:04.1]} 76. Kh6 {[%clk 0:00:08.7]} 76... Kg8 {[%clk 0:00:04.3]} 77. Kg6
{[%clk 0:00:09.5]} 77... Kh8 {[%clk 0:00:05.2]} 78. g4 {[%clk 0:00:10.1]} 78...
Kg8 {[%clk 0:00:06.1]} 79. g5 {[%clk 0:00:11]} 79... Kh8 {[%clk 0:00:07]} 80.
Kf7 {[%clk 0:00:11.4]} 80... Kh7 {[%clk 0:00:07.1]} 81. g6+ {[%clk 0:00:12.3]}
81... Kh6 {[%clk 0:00:07.1]} 82. g7 {[%clk 0:00:13.2]} 82... Kh5 {[%clk
0:00:08]} 83. g8=Q {[%clk 0:00:13.6]} 83... Kxh4 {[%clk 0:00:08.9]} 84. Qg2
{[%clk 0:00:13.5]} 84... Kh5 {[%clk 0:00:09]} 85. Qg3 {[%clk 0:00:14.4]} 85...
Kh6 {[%clk 0:00:09.9]} 86. Qh4# {[%clk 0:00:15.1]} 1-0

[Event "Early-Titled-Tuesday-Blitz-April-23-2024"]
[Site "Chess.com"]
[Date "2024.04.23"]
[Round "9"]
[White "hongnhung1234"]
[Black "EliteChess0967"]
[Result "1/2-1/2"]
[WhiteElo "2537"]
[BlackElo "2436"]
[TimeControl "180+1"]
[EndTime "9:51:01 PDT"]
[Termination "Game drawn - insufficient material"]

1. e4 {[%clk 0:03:00.9]} 1... e5 {[%clk 0:02:59.5]} 2. Nf3 {[%clk 0:02:59.8]}
2... Nc6 {[%clk 0:02:56.8]} 3. d4 {[%clk 0:03:00.1]} 3... exd4 {[%clk
0:02:56.8]} 4. Nxd4 {[%clk 0:03:01]} 4... Qf6 {[%clk 0:02:57.3]} 5. Be3 {[%clk
0:02:58.7]} 5... Bc5 {[%clk 0:02:57]} 6. c3 {[%clk 0:02:58.9]} 6... Nge7 {[%clk
0:02:57]} 7. Bc4 {[%clk 0:02:59.3]} 7... O-O {[%clk 0:02:57.3]} 8. O-O {[%clk
0:02:59.9]} 8... d6 {[%clk 0:02:56.6]} 9. Nc2 {[%clk 0:02:58.2]} 9... Bxe3
{[%clk 0:02:54.1]} 10. Nxe3 {[%clk 0:02:59.1]} 10... Be6 {[%clk 0:02:52.8]} 11.
Nd2 {[%clk 0:02:56.8]} 11... Rad8 {[%clk 0:02:49.6]} 12. Qa4 {[%clk 0:02:54.9]}
12... d5 {[%clk 0:02:36.6]} 13. exd5 {[%clk 0:02:49.2]} 13... Nxd5 {[%clk
0:02:36.7]} 14. Nxd5 {[%clk 0:02:46.8]} 14... Bxd5 {[%clk 0:02:36.9]} 15. Bxd5
{[%clk 0:02:45.7]} 15... Rxd5 {[%clk 0:02:37]} 16. Ne4 {[%clk 0:02:45.6]} 16...
Qg6 {[%clk 0:02:34]} 17. Rad1 {[%clk 0:02:41.4]} 17... Rfd8 {[%clk 0:02:20.6]}
18. Ng3 {[%clk 0:02:35.6]} 18... h6 {[%clk 0:01:59.5]} 19. Qb3 {[%clk
0:02:31.6]} 19... Rxd1 {[%clk 0:01:52.9]} 20. Rxd1 {[%clk 0:02:32.5]} 20...
Rxd1+ {[%clk 0:01:49.6]} 21. Qxd1 {[%clk 0:02:33.4]} 21... Qe6 {[%clk
0:01:48.2]} 22. b3 {[%clk 0:02:27.7]} 22... Qe5 {[%clk 0:01:44.5]} 23. Qd2
{[%clk 0:02:26]} 23... a5 {[%clk 0:01:42.6]} 24. h3 {[%clk 0:02:24.8]} 24... a4
{[%clk 0:01:30.9]} 25. Ne2 {[%clk 0:02:20.2]} 25... axb3 {[%clk 0:01:29.2]} 26.
axb3 {[%clk 0:02:21.1]} 26... Qe6 {[%clk 0:01:27.3]} 27. c4 {[%clk 0:02:18.6]}
27... Qe7 {[%clk 0:01:18.5]} 28. Nf4 {[%clk 0:02:16.5]} 28... Qb4 {[%clk
0:01:13.5]} 29. Qe3 {[%clk 0:02:16.3]} 29... Qe7 {[%clk 0:01:05.2]} 30. Qg3
{[%clk 0:01:55.4]} 30... Nd4 {[%clk 0:00:57.7]} 31. Kh2 {[%clk 0:01:50.3]} 31...
Qe5 {[%clk 0:00:51.2]} 32. Nd5 {[%clk 0:01:43.6]} 32... Qxg3+ {[%clk 0:00:48.9]}
33. Kxg3 {[%clk 0:01:44.5]} 33... c6 {[%clk 0:00:45.7]} 34. Ne7+ {[%clk
0:01:42.9]} 34... Kf8 {[%clk 0:00:43.7]} 35. Nc8 {[%clk 0:01:43.5]} 35... Nxb3
{[%clk 0:00:43.6]} 36. Kf4 {[%clk 0:01:41.6]} 36... Nc5 {[%clk 0:00:39.9]} 37.
f3 {[%clk 0:01:39.5]} 37... g6 {[%clk 0:00:29.1]} 38. Ke5 {[%clk 0:01:38.4]}
38... b5 {[%clk 0:00:27.3]} 39. cxb5 {[%clk 0:01:10.9]} 39... cxb5 {[%clk
0:00:28.2]} 40. Kd5 {[%clk 0:01:10.1]} 40... Nd3 {[%clk 0:00:27.8]} 41. Nd6
{[%clk 0:01:08.9]} 41... b4 {[%clk 0:00:25.6]} 42. Kc4 {[%clk 0:01:08.3]} 42...
Nf4 {[%clk 0:00:23.7]} 43. g3 {[%clk 0:01:05.8]} 43... Nxh3 {[%clk 0:00:23.6]}
44. Kxb4 {[%clk 0:01:06.3]} 44... Ng5 {[%clk 0:00:21.5]} 45. f4 {[%clk
0:01:05.3]} 45... Ne6 {[%clk 0:00:22.1]} 46. Kc4 {[%clk 0:01:05.1]} 46... Kg7
{[%clk 0:00:21.8]} 47. Kd5 {[%clk 0:01:04.3]} 47... h5 {[%clk 0:00:20.4]} 48.
Ke5 {[%clk 0:01:04]} 48... Nc5 {[%clk 0:00:19.6]} 49. Ne8+ {[%clk 0:01:03]}
49... Kf8 {[%clk 0:00:19.3]} 50. Nd6 {[%clk 0:01:02.6]} 50... Nd7+ {[%clk
0:00:19.3]} 51. Ke4 {[%clk 0:01:01.7]} 51... Ke7 {[%clk 0:00:19.8]} 52. Nc4
{[%clk 0:01:00.1]} 52... Nf6+ {[%clk 0:00:20.3]} 53. Ke5 {[%clk 0:01:00.2]}
53... Ng4+ {[%clk 0:00:20.1]} 54. Kd5 {[%clk 0:00:58.2]} 54... Kf6 {[%clk
0:00:20.6]} 55. Ke4 {[%clk 0:00:56]} 55... Nf2+ {[%clk 0:00:19.1]} 56. Kf3
{[%clk 0:00:55.9]} 56... Ng4 {[%clk 0:00:19.6]} 57. Ke4 {[%clk 0:00:54.8]} 57...
Nh6 {[%clk 0:00:20.3]} 58. Nd6 {[%clk 0:00:53]} 58... Nf5 {[%clk 0:00:19.9]} 59.
Nxf5 {[%clk 0:00:14.3]} 59... gxf5+ {[%clk 0:00:20.8]} 60. Kd5 {[%clk
0:00:13.9]} 60... Kg7 {[%clk 0:00:19.5]} 61. Kd6 {[%clk 0:00:13.8]} 61... Kf6
{[%clk 0:00:16.3]} 62. Kd5 {[%clk 0:00:13.2]} 62... Kg7 {[%clk 0:00:15.2]} 63.
Kd6 {[%clk 0:00:13.4]} 63... Kh6 {[%clk 0:00:14.3]} 64. Kd5 {[%clk 0:00:10.5]}
64... h4 {[%clk 0:00:13.7]} 65. gxh4 {[%clk 0:00:09.8]} 65... Kh5 {[%clk
0:00:14.3]} 66. Ke5 {[%clk 0:00:08.6]} 66... Kxh4 {[%clk 0:00:11.7]} 67. Kxf5
{[%clk 0:00:08.6]} 67... Kg3 {[%clk 0:00:12.4]} 68. Kg5 {[%clk 0:00:09.1]} 68...
Kf3 {[%clk 0:00:12.7]} 69. Kf5 {[%clk 0:00:08.8]} 69... Ke3 {[%clk 0:00:12.8]}
70. Ke5 {[%clk 0:00:09.2]} 70... Kf3 {[%clk 0:00:12.5]} 71. f5 {[%clk
0:00:09.6]} 71... Kg4 {[%clk 0:00:12.9]} 72. Kf6 {[%clk 0:00:08.6]} 72... Kf4
{[%clk 0:00:13]} 73. Kxf7 {[%clk 0:00:08.8]} 73... Kxf5 {[%clk 0:00:13.9]}
1/2-1/2

[Event "Early-Titled-Tuesday-Blitz-April-23-2024"]
[Site "Chess.com"]
[Date "2024.04.23"]
[Round "9"]
[White "theoneandonlydaaevik"]
[Black "Kimkibo"]
[Result "1-0"]
[WhiteElo "2595"]
[BlackElo "2436"]
[TimeControl "180+1"]
[EndTime "9:51:05 PDT"]
[Termination "theoneandonlydaaevik won on time"]

1. d4 {[%clk 0:02:56.3]} 1... d5 {[%clk 0:02:54.1]} 2. c4 {[%clk 0:02:56.6]}
2... e6 {[%clk 0:02:53]} 3. Nf3 {[%clk 0:02:56.9]} 3... Nf6 {[%clk 0:02:52.7]}
4. Nc3 {[%clk 0:02:57]} 4... Nbd7 {[%clk 0:02:50.9]} 5. Qc2 {[%clk 0:02:55.5]}
5... c6 {[%clk 0:02:46.4]} 6. e4 {[%clk 0:02:43.4]} 6... dxe4 {[%clk 0:02:39.9]}
7. Nxe4 {[%clk 0:02:44.3]} 7... Bb4+ {[%clk 0:02:33.5]} 8. Bd2 {[%clk
0:02:44.1]} 8... Bxd2+ {[%clk 0:02:24.3]} 9. Nfxd2 {[%clk 0:02:43.1]} 9... e5
{[%clk 0:02:23.5]} 10. Nd6+ {[%clk 0:02:41.9]} 10... Kf8 {[%clk 0:02:20.8]} 11.
dxe5 {[%clk 0:02:30.6]} 11... Nxe5 {[%clk 0:02:18.5]} 12. c5 {[%clk 0:02:31.2]}
12... b6 {[%clk 0:02:08.3]} 13. Be2 {[%clk 0:02:29.8]} 13... Bg4 {[%clk
0:02:01.7]} 14. Bxg4 {[%clk 0:02:20.5]} 14... bxc5 {[%clk 0:02:00.9]} 15. O-O
{[%clk 0:01:47.2]} 15... Qxd6 {[%clk 0:01:57.5]} 16. Be2 {[%clk 0:01:43]} 16...
g6 {[%clk 0:01:49.7]} 17. Rfd1 {[%clk 0:01:39.2]} 17... Qe7 {[%clk 0:01:40.8]}
18. Nb3 {[%clk 0:01:36.5]} 18... Kg7 {[%clk 0:01:40]} 19. Nxc5 {[%clk
0:01:36.2]} 19... Nd5 {[%clk 0:01:36.6]} 20. g3 {[%clk 0:01:28.3]} 20... Rab8
{[%clk 0:01:29.7]} 21. Rac1 {[%clk 0:01:27.9]} 21... Rhd8 {[%clk 0:01:24.9]} 22.
a3 {[%clk 0:01:21.8]} 22... a5 {[%clk 0:01:18.5]} 23. b3 {[%clk 0:01:02.8]}
23... h5 {[%clk 0:01:14.5]} 24. Qe4 {[%clk 0:01:02.1]} 24... Qf6 {[%clk
0:01:01.9]} 25. f4 {[%clk 0:00:42.7]} 25... Ng4 {[%clk 0:00:59.6]} 26. Bxg4
{[%clk 0:00:42.3]} 26... hxg4 {[%clk 0:00:59.9]} 27. Qe5 {[%clk 0:00:40.1]}
27... Qxe5 {[%clk 0:00:51.9]} 28. fxe5 {[%clk 0:00:41]} 28... Re8 {[%clk
0:00:51.1]} 29. Re1 {[%clk 0:00:40.6]} 29... Re7 {[%clk 0:00:49.5]} 30. e6
{[%clk 0:00:32.5]} 30... f5 {[%clk 0:00:46.3]} 31. Kf2 {[%clk 0:00:26.2]} 31...
Kf6 {[%clk 0:00:45.2]} 32. Nd7+ {[%clk 0:00:25.7]} 32... Rxd7 {[%clk 0:00:40.7]}
33. exd7 {[%clk 0:00:26.6]} 33... Ne7 {[%clk 0:00:30.2]} 34. Rcd1 {[%clk
0:00:18.3]} 34... Rd8 {[%clk 0:00:29.7]} 35. Rd6+ {[%clk 0:00:18]} 35... Kf7
{[%clk 0:00:29.2]} 36. Ree6 {[%clk 0:00:14.1]} 36... Nd5 {[%clk 0:00:21]} 37.
Rxg6 {[%clk 0:00:13.1]} 37... Nc3 {[%clk 0:00:21]} 38. Rgf6+ {[%clk 0:00:12.9]}
38... Ke7 {[%clk 0:00:20.1]} 39. Rfe6+ {[%clk 0:00:12.1]} 39... Kf7 {[%clk
0:00:19.6]} 40. Ke3 {[%clk 0:00:09.5]} 40... Nb5 {[%clk 0:00:16.7]} 41. Rxc6
{[%clk 0:00:08.8]} 41... Rxd7 {[%clk 0:00:16.6]} 42. Rf6+ {[%clk 0:00:08.4]}
42... Ke7 {[%clk 0:00:16.3]} 43. Rxf5 {[%clk 0:00:08.8]} 43... Nxa3 {[%clk
0:00:15.6]} 44. Rxa5 {[%clk 0:00:08.2]} 44... Nb1 {[%clk 0:00:14.7]} 45. Re5+
{[%clk 0:00:05.6]} 45... Kf7 {[%clk 0:00:13.8]} 46. Rf5+ {[%clk 0:00:05.9]}
46... Ke7 {[%clk 0:00:13.3]} 47. Rf2 {[%clk 0:00:04.7]} 47... Na3 {[%clk
0:00:11.5]} 48. Ra2 {[%clk 0:00:04]} 48... Nb5 {[%clk 0:00:11.1]} 49. Ra5 {[%clk
0:00:02.8]} 49... Nd4 {[%clk 0:00:10.5]} 50. Rc3 {[%clk 0:00:03.5]} 50... Ne6
{[%clk 0:00:07.2]} 51. Ke4 {[%clk 0:00:04]} 51... Kf6 {[%clk 0:00:06.3]} 52.
Rf5+ {[%clk 0:00:03.9]} 52... Kg6 {[%clk 0:00:06.2]} 53. Rd5 {[%clk 0:00:04.6]}
53... Ng5+ {[%clk 0:00:05.5]} 54. Ke5 {[%clk 0:00:04.4]} 54... Re7+ {[%clk
0:00:05]} 55. Kd6 {[%clk 0:00:04.6]} 55... Re2 {[%clk 0:00:04]} 56. Kc7 {[%clk
0:00:03.6]} 56... Rxh2 {[%clk 0:00:03.6]} 57. b4 {[%clk 0:00:04.2]} 57... Rb2
{[%clk 0:00:03.6]} 58. b5 {[%clk 0:00:03.7]} 58... Ne4 {[%clk 0:00:03.3]} 59.
Rc6+ {[%clk 0:00:04.2]} 59... Kg7 {[%clk 0:00:02.2]} 60. Rd7+ {[%clk 0:00:03.8]}
60... Kf8 {[%clk 0:00:02.4]} 61. Kb6 {[%clk 0:00:04.1]} 61... Nf6 {[%clk
0:00:01.1]} 62. Rc8+ {[%clk 0:00:03.9]} 1-0

[Event "Early-Titled-Tuesday-Blitz-April-23-2024"]
[Site "Chess.com"]
[Date "2024.04.23"]
[Round "9"]
[White "Lady_Nika"]
[Black "LeRoidesChampions"]
[Result "1-0"]
[WhiteElo "2482"]
[BlackElo "2600"]
[TimeControl "180+1"]
[EndTime "9:51:15 PDT"]
[Termination "Lady_Nika won by resignation"]

1. d4 {[%clk 0:03:00.9]} 1... Nf6 {[%clk 0:02:58.6]} 2. e3 {[%clk 0:03:01.8]}
2... g6 {[%clk 0:02:58.5]} 3. f4 {[%clk 0:03:00.4]} 3... Bg7 {[%clk 0:02:59.4]}
4. Nf3 {[%clk 0:03:00.8]} 4... O-O {[%clk 0:03:00.3]} 5. c3 {[%clk 0:03:01.2]}
5... d6 {[%clk 0:03:01]} 6. Be2 {[%clk 0:03:01.4]} 6... Nbd7 {[%clk 0:03:01.6]}
7. O-O {[%clk 0:03:02.3]} 7... e5 {[%clk 0:02:56.8]} 8. Na3 {[%clk 0:03:03.2]}
8... Re8 {[%clk 0:02:53.8]} 9. Nc2 {[%clk 0:02:54]} 9... b6 {[%clk 0:02:53.7]}
10. fxe5 {[%clk 0:02:45.2]} 10... dxe5 {[%clk 0:02:52.7]} 11. d5 {[%clk
0:02:44.7]} 11... Bb7 {[%clk 0:02:47.5]} 12. c4 {[%clk 0:02:41.3]} 12... e4
{[%clk 0:02:41.9]} 13. Ng5 {[%clk 0:02:36]} 13... Ne5 {[%clk 0:02:38.1]} 14. Nd4
{[%clk 0:02:31.7]} 14... h6 {[%clk 0:02:36.2]} 15. Nh3 {[%clk 0:02:30]} 15...
Qd6 {[%clk 0:02:36.7]} 16. Bd2 {[%clk 0:02:19.9]} 16... a6 {[%clk 0:02:31.7]}
17. Be1 {[%clk 0:02:14.3]} 17... c5 {[%clk 0:02:25.6]} 18. Nc2 {[%clk
0:02:10.1]} 18... Bc8 {[%clk 0:02:16.3]} 19. Bg3 {[%clk 0:02:06.5]} 19... Bxh3
{[%clk 0:02:12.8]} 20. gxh3 {[%clk 0:02:07.4]} 20... Qd7 {[%clk 0:02:12.6]} 21.
Kg2 {[%clk 0:02:06.7]} 21... Nh7 {[%clk 0:02:09.9]} 22. Rb1 {[%clk 0:02:02.4]}
22... Ng5 {[%clk 0:02:09.3]} 23. h4 {[%clk 0:01:46]} 23... Qh3+ {[%clk
0:02:01.8]} 24. Kh1 {[%clk 0:01:45.8]} 24... Ngf3 {[%clk 0:02:02]} 25. Ne1
{[%clk 0:01:45.4]} 25... Nxh2 {[%clk 0:01:33.5]} 26. Bxh2 {[%clk 0:01:41]} 26...
Ng4 {[%clk 0:01:33.8]} 27. Bxg4 {[%clk 0:01:37.3]} 27... Qxf1+ {[%clk
0:01:34.2]} 28. Bg1 {[%clk 0:01:37.5]} 28... h5 {[%clk 0:01:25.7]} 29. Qe2
{[%clk 0:01:36]} 29... Qf6 {[%clk 0:01:25.3]} 30. Bh3 {[%clk 0:01:35.2]} 30...
Qxh4 {[%clk 0:01:24.4]} 31. Qh2 {[%clk 0:01:27.6]} 31... Be5 {[%clk 0:01:09.3]}
32. Qg2 {[%clk 0:01:23.5]} 32... Bg3 {[%clk 0:01:06.7]} 33. Nc2 {[%clk
0:01:14.4]} 33... Re5 {[%clk 0:01:06.7]} 34. Bh2 {[%clk 0:01:06.4]} 34... Rg5
{[%clk 0:01:06.5]} 35. Rg1 {[%clk 0:01:01.4]} 35... Bxh2 {[%clk 0:00:50]} 36.
Qxh2 {[%clk 0:01:00.2]} 36... Rxg1+ {[%clk 0:00:45.9]} 37. Kxg1 {[%clk
0:01:01.1]} 37... f5 {[%clk 0:00:41]} 38. Bg2 {[%clk 0:00:51.5]} 38... Qf6
{[%clk 0:00:36.7]} 39. Qg3 {[%clk 0:00:44.2]} 39... h4 {[%clk 0:00:27.3]} 40.
Qc7 {[%clk 0:00:40.7]} 40... Qxb2 {[%clk 0:00:19]} 41. Qc6 {[%clk 0:00:36.5]}
41... Rf8 {[%clk 0:00:08.4]} 42. Qxg6+ {[%clk 0:00:36]} 42... Qg7 {[%clk
0:00:09.1]} 43. Qh5 {[%clk 0:00:20.4]} 43... Rf6 {[%clk 0:00:03.7]} 44. Qxh4
{[%clk 0:00:20]} 44... Rg6 {[%clk 0:00:04.3]} 45. Qd8+ {[%clk 0:00:19.4]} 45...
Kh7 {[%clk 0:00:04.6]} 46. Qh4+ {[%clk 0:00:19.3]} 46... Rh6 {[%clk 0:00:05.3]}
47. Qf4 {[%clk 0:00:18.5]} 47... Qf6 {[%clk 0:00:02.9]} 48. Ne1 {[%clk
0:00:14.3]} 48... Rh4 {[%clk 0:00:01.8]} 49. Qc7+ {[%clk 0:00:14.3]} 49... Kh6
{[%clk 0:00:02.4]} 50. d6 {[%clk 0:00:13]} 50... f4 {[%clk 0:00:02.8]} 51. Qe7
{[%clk 0:00:10.3]} 51... Qg6 {[%clk 0:00:01.4]} 52. Qf8+ {[%clk 0:00:10.5]}
52... Kh7 {[%clk 0:00:01.6]} 53. exf4 {[%clk 0:00:10.8]} 53... e3 {[%clk
0:00:01.8]} 54. f5 {[%clk 0:00:11.1]} 54... Qg3 {[%clk 0:00:01.4]} 55. Qe7+
{[%clk 0:00:10.7]} 55... Kh6 {[%clk 0:00:02.3]} 56. Qf6+ {[%clk 0:00:10.1]}
56... Kh7 {[%clk 0:00:02.9]} 57. Qg6+ {[%clk 0:00:09.7]} 57... Qxg6 {[%clk
0:00:03.2]} 58. fxg6+ {[%clk 0:00:10.6]} 58... Kxg6 {[%clk 0:00:04.1]} 59. Nf3
{[%clk 0:00:11.3]} 59... Kf6 {[%clk 0:00:02.7]} 60. Nxh4 {[%clk 0:00:11.3]}
60... Ke6 {[%clk 0:00:02.1]} 61. Nf5 {[%clk 0:00:11.7]} 61... e2 {[%clk
0:00:01.2]} 62. Kf2 {[%clk 0:00:12.1]} 62... b5 {[%clk 0:00:02.1]} 63. Kxe2
{[%clk 0:00:12.1]} 63... b4 {[%clk 0:00:03]} 64. Bd5+ {[%clk 0:00:11.6]} 64...
Kd7 {[%clk 0:00:03.1]} 65. Ne3 {[%clk 0:00:11.5]} 65... a5 {[%clk 0:00:04]} 66.
Nf5 {[%clk 0:00:10.8]} 66... a4 {[%clk 0:00:04]} 67. Kd2 {[%clk 0:00:10.5]}
67... Kd8 {[%clk 0:00:04.5]} 68. Kc2 {[%clk 0:00:10.5]} 68... Kd7 {[%clk
0:00:05.4]} 69. Kb2 {[%clk 0:00:09.4]} 69... Kc8 {[%clk 0:00:05.1]} 70. Bc6
{[%clk 0:00:09.3]} 70... Kd8 {[%clk 0:00:05.5]} 71. Ne3 {[%clk 0:00:09.3]} 71...
Kc8 {[%clk 0:00:05.7]} 72. Ng4 {[%clk 0:00:09.6]} 72... Kd8 {[%clk 0:00:06.6]}
73. Nf6 {[%clk 0:00:09.7]} 73... a3+ {[%clk 0:00:07.5]} 74. Kb3 {[%clk
0:00:08.9]} 74... Kc8 {[%clk 0:00:08.4]} 75. Ne4 {[%clk 0:00:09.3]} 75... Kd8
{[%clk 0:00:09.3]} 76. Nxc5 {[%clk 0:00:09.7]} 76... Kc8 {[%clk 0:00:10.1]} 77.
d7+ {[%clk 0:00:10.2]} 77... Kb8 {[%clk 0:00:11]} 78. d8=Q+ {[%clk 0:00:10.1]}
78... Ka7 {[%clk 0:00:11.8]} 79. Qa8+ {[%clk 0:00:10]} 1-0